bitfinex-derivatives/quotes_BTCF0:USTF0_20241227
["timestamp","ask_amount","ask_price","bid_price","bid_amount"]
[1735296285170,0.051898,96462.0,96460.0,1.5]
[1735296286576,0.052898,96462.0,96460.0,1.5]
[1735296287571,0.052898,96462.0,96459.0,0.051899]
[1735296287965,0.052898,96462.0,96459.0,1.551899]
[1735296288972,0.052898,96462.0,96459.0,0.051899]
[1735296289165,0.06376592,96462.0,96459.0,0.051899]
[1735296289362,0.001,96462.0,96450.0,0.10381233]
[1735296289564,0.001,96462.0,96460.0,0.051899]
[1735296289772,0.001,96462.0,96461.0,0.0509]
[1735296289965,0.12327345,96470.0,96461.0,0.0509]
[1735296290267,0.15405993,96478.0,96477.0,0.05189]
[1735296291174,0.10381233,96490.0,96463.0,0.051897]
[1735296291175,0.051886,96485.0,96463.0,0.051897]
[1735296291476,0.051886,96485.0,96478.0,0.051889]
[1735296292270,0.051887,96484.0,96478.0,0.051889]
[1735296292778,0.051887,96483.0,96478.0,0.051889]
[1735296293375,0.051887,96483.0,96479.0,0.0478]
[1735296294378,0.051888,96482.0,96479.0,0.0478]
[1735296295175,0.1147204,96490.0,96470.0,0.051894]
[1735296295176,0.051892,96474.0,96470.0,0.051894]
[1735296295676,0.051893,96473.0,96470.0,0.051894]
[1735296295871,0.051893,96472.0,96470.0,0.051894]
[1735296296271,0.051894,96470.0,96466.0,0.30682357]
[1735296296470,0.11450488,96480.0,96466.0,0.30682357]
[1735296296672,0.051895,96469.0,96468.0,0.24813791]
[1735296297682,0.051895,96469.0,96467.0,0.051895]
[1735296297981,0.051896,96467.0,96466.0,0.0478]
[1735296299377,0.051896,96467.0,96466.0,0.23415054]
[1735296300483,0.051896,96467.0,96466.0,0.18635054]
[1735296301178,0.051896,96467.0,96466.0,0.18735054]
[1735296301782,0.051896,96467.0,96466.0,0.18635054]
[1735296302486,0.36269204,96467.0,96451.0,0.24846738]
[1735296302788,0.36269204,96467.0,96445.0,0.31107315]
[1735296302789,0.051907,96446.0,96445.0,0.31107315]
[1735296303485,0.051903,96454.0,96445.0,0.31107315]
[1735296303681,0.051903,96453.0,96448.0,0.051905]
[1735296304187,0.051903,96453.0,96446.0,0.0507]
[1735296304188,0.15405993,96456.0,96450.0,0.051904]
[1735296304372,0.15405993,96456.0,96446.0,0.0507]
[1735296304578,0.15405993,96456.0,96453.0,0.051903]
[1735296304982,0.15405993,96456.0,96447.0,1.50052]
[1735296304983,0.15405993,96456.0,96448.0,0.002]
[1735296305287,0.051905,96450.0,96448.0,0.002]
[1735296305476,0.051902,96456.0,96448.0,0.058905]
[1735296305682,0.051902,96455.0,96448.0,0.056905]
[1735296306378,0.051903,96454.0,96448.0,0.056905]
[1735296306574,0.051903,96453.0,96448.0,0.056905]
[1735296306985,0.051903,96453.0,96448.0,0.051905]
[1735296307693,0.051903,96453.0,96448.0,0.052905]
[1735296308881,0.051903,96453.0,96448.0,0.054905]
[1735296309586,0.051903,96453.0,96448.0,0.053905]
[1735296310279,0.051903,96453.0,96448.0,0.052905]
[1735296310474,0.051903,96453.0,96448.0,0.054905]
[1735296310685,0.051898,96463.0,96454.0,0.051902]
[1735296311085,0.10381233,96470.0,96455.0,0.051]
[1735296311280,0.051899,96461.0,96455.0,0.051]
[1735296311681,0.051901,96458.0,96448.0,0.003]
[1735296311882,0.051901,96458.0,96449.0,0.051905]
[1735296312190,0.051901,96458.0,96451.0,0.051904]
[1735296313690,0.051901,96458.0,96451.0,0.054904]
[1735296314192,0.051901,96458.0,96451.0,0.052904]
[1735296314492,0.051901,96458.0,96451.0,0.054904]
[1735296315088,0.051901,96458.0,96451.0,0.003]
[1735296315285,0.051901,96458.0,96452.0,0.051903]
[1735296315489,0.15405993,96467.0,96452.0,0.051903]
[1735296315791,0.051901,96458.0,96452.0,0.051903]
[1735296316488,0.15405993,96467.0,96452.0,0.051903]
[1735296316489,0.051902,96456.0,96452.0,0.051903]
[1735296316694,0.051902,96456.0,96452.0,0.052903]
[1735296317896,0.15405993,96469.0,96452.0,0.053903]
[1735296318092,0.051895,96468.0,96452.0,0.052903]
[1735296318286,0.051895,96468.0,96452.0,0.053903]
[1735296318691,0.051899,96461.0,96452.0,0.053903]
[1735296318882,0.15405993,96469.0,96452.0,0.052903]
[1735296318883,0.0519,96459.0,96452.0,0.052903]
[1735296319187,0.0519,96459.0,96452.0,0.051903]
[1735296319384,0.0519,96459.0,96452.0,0.052903]
[1735296319690,0.15171233,96470.0,96452.0,0.052903]
[1735296319997,0.0519,96458.0,96452.0,0.052903]
[1735296320998,0.0519,96458.0,96453.0,0.051903]
[1735296323287,0.051903,96453.0,96448.0,0.0481]
[1735296323491,0.051903,96453.0,96450.0,0.051904]
[1735296323694,0.051903,96453.0,96451.0,0.051904]
[1735296325800,0.051903,96453.0,96451.0,0.052904]
[1735296326701,0.051903,96453.0,96451.0,0.053904]
[1735296327889,0.051903,96453.0,96451.0,0.001]
[1735296328194,0.051903,96453.0,96451.0,0.002]
[1735296332494,0.0476,96452.0,96451.0,0.002]
[1735296333205,0.0476,96452.0,96451.0,0.001]
[1735296333509,0.0476,96452.0,96443.0,0.051908]
[1735296333510,0.0476,96452.0,96441.0,1.5]
[1735296333805,0.051905,96449.0,96447.0,0.051906]
[1735296335696,0.051902,96455.0,96454.0,0.051902]
[1735296335900,0.15405993,96459.0,96442.0,0.31107315]
[1735296336111,0.15405993,96459.0,96457.0,0.0519]
[1735296336708,0.051902,96456.0,96450.0,0.051905]
[1735296337008,0.15405993,96459.0,96447.0,0.001]
[1735296337207,0.15405993,96459.0,96447.0,0.002]
[1735296337507,0.15405993,96467.0,96450.0,0.31107315]
[1735296337807,0.07575993,96467.0,96465.0,0.051896]
[1735296337998,0.18460347,96473.0,96472.0,0.051893]
[1735296338199,0.21661073,96484.0,96483.0,0.051887]
[1735296338398,0.21537072,96484.0,96483.0,0.051887]
[1735296338802,0.00120001,96490.0,96489.0,0.051884]
[1735296338992,0.00116,96500.0,96498.0,0.051879]
[1735296339198,0.051877,96503.0,96498.0,0.051879]
[1735296341809,0.0488,96506.0,96498.0,0.051879]
[1735296342008,0.051877,96501.0,96498.0,0.051879]
[1735296344418,0.01072429,96508.0,96498.0,0.051879]
[1735296344713,0.051873,96509.0,96500.0,0.051877]
[1735296344916,0.0512,96515.0,96500.0,0.051877]
[1735296345216,0.051875,96505.0,96500.0,0.051877]
[1735296345606,0.001,96501.0,96500.0,0.051877]
[1735296347315,0.053875,96505.0,96500.0,0.051877]
[1735296348119,0.002,96501.0,96500.0,0.051877]
[1735296349114,0.051875,96505.0,96500.0,0.051877]
[1735296349424,0.002,96505.0,96503.0,0.051876]
[1735296350715,0.06245706,96511.0,96503.0,0.051876]
[1735296350909,0.051872,96511.0,96503.0,0.051876]
[1735296351725,0.002,96505.0,96503.0,0.051876]
[1735296351911,0.051879,96499.0,96495.0,0.05188]
[1735296352113,0.10581233,96505.0,96474.0,0.3108205]
[1735296352318,0.051885,96488.0,96479.0,0.051889]
[1735296352611,0.05189,96478.0,96474.0,0.3108205]
[1735296352814,0.051891,96475.0,96474.0,0.3108205]
[1735296353415,0.051891,96475.0,96469.0,1.50056]
[1735296353614,0.051891,96475.0,96470.0,0.051894]
[1735296354022,0.051891,96475.0,96469.0,1.50056]
[1735296354023,0.1458,96489.0,96474.0,0.004]
[1735296354322,0.10381233,96500.0,96484.0,0.051886]
[1735296354323,0.051883,96491.0,96484.0,0.051886]
[1735296354623,0.051883,96491.0,96485.0,1.5]
[1735296354918,0.051882,96493.0,96486.0,0.051885]
[1735296355122,0.0977,96504.0,96485.0,1.50056]
[1735296355123,0.051878,96501.0,96485.0,1.50056]
[1735296355321,0.0977,96504.0,96490.0,0.051883]
[1735296355322,0.051879,96499.0,96490.0,0.051883]
[1735296355522,0.05188,96496.0,96490.0,0.051883]
[1735296355825,0.051882,96493.0,96485.0,1.50056]
[1735296356021,0.051884,96488.0,96485.0,1.5]
[1735296356321,0.051885,96487.0,96485.0,1.5]
[1735296357122,0.051886,96485.0,96484.0,0.003]
[1735296357323,0.051885,96486.0,96485.0,0.003]
[1735296357511,0.051886,96485.0,96461.0,0.051898]
[1735296357827,0.051885,96486.0,96461.0,0.051898]
[1735296357828,0.10381233,96480.0,96469.0,1.5]
[1735296358125,0.10381233,96480.0,96461.0,0.051898]
[1735296358718,0.051893,96473.0,96462.0,1.5]
[1735296358934,0.051893,96473.0,96462.0,1.50052]
[1735296359229,0.051893,96473.0,96469.0,0.002]
[1735296360116,0.051888,96481.0,96469.0,0.002]
[1735296360325,0.12262534,96493.0,96470.0,0.15261233]
[1735296360326,0.051884,96488.0,96470.0,0.15261233]
[1735296360533,0.051885,96487.0,96479.0,0.051889]
[1735296360734,0.12262534,96493.0,96479.0,0.051889]
[1735296361032,0.10381233,96490.0,96479.0,0.051889]
[1735296361926,0.051887,96483.0,96479.0,0.053889]
[1735296362429,0.0501,96499.0,96479.0,0.002]
[1735296362430,0.101979,96499.0,96479.0,0.002]
[1735296362628,0.12262534,96501.0,96480.0,0.20471233]
[1735296362815,0.051874,96508.0,96481.0,0.051888]
[1735296362816,0.12262534,96498.0,96481.0,0.051888]
[1735296363022,0.12262534,96498.0,96488.0,0.10381233]
[1735296364022,0.12262534,96498.0,96497.0,0.051879]
[1735296364327,0.051874,96508.0,96500.0,0.051877]
[1735296364831,0.051874,96508.0,96501.0,1.5]
[1735296365022,0.051874,96508.0,96501.0,1.551877]
[1735296365425,0.054874,96508.0,96501.0,1.551877]
[1735296367029,0.056874,96508.0,96501.0,1.551877]
[1735296368028,0.055874,96508.0,96501.0,1.551877]
[1735296368221,0.053874,96508.0,96501.0,1.551877]
[1735296370138,0.053874,96508.0,96502.0,0.051876]
[1735296371018,0.001,96508.0,96501.0,1.5006]
[1735296371222,0.001,96508.0,96506.0,0.051874]
[1735296371223,0.002,96508.0,96506.0,0.051874]
[1735296371633,0.001,96508.0,96506.0,0.051874]
[1735296371821,0.003,96508.0,96506.0,0.051874]
[1735296372226,0.001,96508.0,96506.0,0.051874]
[1735296372427,0.004,96508.0,96506.0,0.051874]
[1735296372627,0.09209235,96516.0,96502.0,0.0965]
[1735296372827,0.5907,96588.0,96502.0,0.0965]
[1735296372828,0.21653072,96545.0,96507.0,0.051874]
[1735296373026,0.21653072,96545.0,96543.0,0.051854]
[1735296373027,0.21537072,96545.0,96543.0,0.051854]
[1735296373227,0.18637393,96549.0,96534.0,0.10381233]
[1735296373430,0.18637393,96549.0,96544.0,0.051854]
[1735296373737,0.18637393,96549.0,96548.0,0.051852]
[1735296375030,0.18937393,96549.0,96548.0,0.051852]
[1735296375241,0.003,96549.0,96548.0,0.051852]
[1735296377427,0.005,96549.0,96548.0,0.051852]
[1735296378136,0.001,96549.0,96548.0,0.051852]
[1735296378930,0.001,96549.0,96542.0,0.0105296]
[1735296379142,0.001,96549.0,96548.0,0.051852]
[1735296381826,0.051839,96573.0,96566.0,0.051842]
[1735296383233,0.104134,96582.0,96561.0,1.50052]
[1735296383542,0.0523,96582.0,96578.0,0.051836]
[1735296384136,0.0523,96582.0,96566.0,0.001]
[1735296384137,0.005,96573.0,96568.0,0.051841]
[1735296384344,0.051841,96570.0,96561.0,0.052365]
[1735296384644,0.051841,96570.0,96561.0,0.052845]
[1735296385035,0.051841,96570.0,96561.0,0.051845]
[1735296385649,0.01046257,96580.0,96550.0,0.10381233]
[1735296385836,0.002,96570.0,96564.0,0.051843]
[1735296386035,0.053841,96570.0,96564.0,0.051843]
[1735296386230,0.051841,96569.0,96564.0,0.051843]
[1735296386947,0.002,96570.0,96564.0,0.051843]
[1735296387447,0.11457007,96580.0,96564.0,0.051843]
[1735296387748,0.0523,96582.0,96551.0,0.05185]
[1735296387938,0.10381233,96580.0,96566.0,0.051842]
[1735296388139,0.002,96570.0,96550.0,0.10381233]
[1735296388335,0.002,96570.0,96568.0,0.051841]
[1735296388732,0.051835,96581.0,96572.0,0.051839]
[1735296389136,0.051835,96581.0,96560.0,0.10381233]
[1735296389338,0.0523,96582.0,96577.0,0.051836]
[1735296390640,0.104134,96582.0,96577.0,0.051836]
[1735296390840,0.104134,96582.0,96577.0,0.052836]
[1735296391048,0.051836,96578.0,96577.0,0.001]
[1735296392641,0.051841,96569.0,96562.0,1.551844]
[1735296392840,0.051842,96567.0,96562.0,0.051844]
[1735296393240,0.051842,96567.0,96554.0,0.051849]
[1735296393434,0.051842,96567.0,96555.0,0.051848]
[1735296393644,0.051844,96563.0,96555.0,0.051848]
[1735296393851,0.1002,96562.0,96555.0,0.051848]
[1735296394055,0.152045,96562.0,96555.0,0.051848]
[1735296397348,0.153045,96562.0,96555.0,0.051848]
[1735296397651,0.1012,96562.0,96548.0,1.50052]
[1735296397846,0.051851,96551.0,96548.0,1.5]
[1735296398146,0.051851,96551.0,96517.0,0.37509131]
[1735296398147,0.10381233,96560.0,96531.0,0.0107237]
[1735296398452,0.051852,96547.0,96535.0,0.051859]
[1735296398653,0.051852,96547.0,96536.0,1.5]
[1735296399149,0.0487,96561.0,96537.0,0.10381233]
[1735296399342,0.051849,96555.0,96537.0,0.10381233]
[1735296399542,0.051849,96555.0,96545.0,0.051853]
[1735296400152,0.051849,96554.0,96545.0,0.051853]
[1735296400342,0.051849,96554.0,96546.0,0.00355351]
[1735296400543,0.05935262,96561.0,96546.0,0.00455351]
[1735296400856,0.05185,96552.0,96546.0,0.00455351]
[1735296402147,0.05185,96552.0,96546.0,0.00355351]
[1735296402453,0.05185,96552.0,96546.0,0.00455351]
[1735296402953,0.05185,96552.0,96546.0,0.00355351]
[1735296404157,0.05185,96552.0,96547.0,1.5]
[1735296405272,0.05185,96552.0,96547.0,1.551852]
[1735296406243,0.05185,96552.0,96548.0,0.051852]
[1735296406752,0.01065262,96561.0,96547.0,1.5502]
[1735296406952,0.1002,96562.0,96547.0,1.5496]
[1735296406953,0.0493,96562.0,96547.0,1.5496]
[1735296407155,0.051849,96554.0,96548.0,0.051852]
[1735296407747,0.051845,96561.0,96549.0,1.5]
[1735296407949,0.051847,96557.0,96554.0,0.051848]
[1735296408146,0.051848,96556.0,96549.0,1.552411]
[1735296408358,0.051848,96556.0,96549.0,1.551851]
[1735296409351,0.051848,96556.0,96549.0,1.5]
[1735296409547,0.051844,96563.0,96554.0,0.051848]
[1735296409751,0.10381233,96580.0,96550.0,0.10381233]
[1735296409752,0.05184,96570.0,96550.0,0.10381233]
[1735296409957,0.051842,96568.0,96553.0,0.051849]
[1735296410162,0.051843,96566.0,96559.0,0.051846]
[1735296410658,0.051843,96566.0,96554.0,0.0476]
[1735296410659,0.10381233,96570.0,96554.0,0.0476]
[1735296410859,0.05185,96553.0,96552.0,0.3108205]
[1735296411256,0.051845,96561.0,96552.0,1.8108205]
[1735296411458,0.051847,96558.0,96556.0,0.051847]
[1735296411654,0.10381233,96570.0,96552.0,1.8108205]
[1735296411655,0.10381233,96570.0,96552.0,1.8113405]
[1735296411856,0.051849,96553.0,96552.0,0.3108205]
[1735296412156,0.051849,96553.0,96552.0,0.2482112]
[1735296413749,0.051851,96550.0,96546.0,0.00155351]
[1735296415160,0.001,96553.0,96546.0,0.00155351]
[1735296415365,0.051852,96558.0,96554.0,0.051853]
[1735296415861,0.051857,96548.0,96546.0,0.00155351]
[1735296416272,0.0521,96547.0,96546.0,0.00155351]
[1735296416563,0.10381233,96556.0,96538.0,0.2482112]
[1735296416760,0.0521,96555.0,96538.0,0.3000732]
[1735296416967,0.051862,96540.0,96538.0,0.2482112]
[1735296417365,0.051864,96535.0,96534.0,0.2482112]
[1735296418768,0.051864,96535.0,96530.0,1.50052]
[1735296418960,0.051866,96532.0,96530.0,1.5]
[1735296420964,0.051866,96532.0,96530.0,1.503]
[1735296421672,0.051866,96532.0,96530.0,1.505]
[1735296421863,0.051866,96532.0,96530.0,1.508]
[1735296422066,0.051866,96532.0,96530.0,0.008]
[1735296425768,0.1449,96531.0,96530.0,0.008]
[1735296425974,0.051871,96522.0,96521.0,0.18611877]
[1735296426162,0.051871,96522.0,96510.0,0.3108205]
[1735296426370,0.051874,96517.0,96515.0,0.06764419]
[1735296426572,0.051878,96509.0,96508.0,0.3108205]
[1735296427967,0.051882,96501.0,96491.0,0.0479]
[1735296429263,0.051882,96501.0,96500.0,0.01155408]
[1735296431075,0.051882,96501.0,96500.0,1.51155408]
[1735296433777,0.051882,96501.0,96500.0,0.01]
[1735296433977,0.051892,96484.0,96473.0,0.051897]
[1735296434277,0.051895,96478.0,96477.0,0.0492]
[1735296434664,0.051895,96478.0,96477.0,1.5492]
[1735296435880,0.001,96484.0,96477.0,1.5492]
[1735296436182,0.003,96478.0,96477.0,1.5492]
[1735296437065,0.002,96478.0,96477.0,1.5492]
[1735296437773,0.01051187,96485.0,96463.0,0.0493]
[1735296438076,0.051906,96458.0,96454.0,0.0478]
[1735296438275,0.051906,96458.0,96457.0,1.5]
[1735296439876,0.052906,96458.0,96457.0,1.506]
[1735296440274,0.051906,96458.0,96457.0,1.5]
[1735296440470,0.051906,96458.0,96457.0,1.505]
[1735296440674,0.051906,96458.0,96457.0,1.507]
[1735296441276,0.051906,96458.0,96457.0,1.505]
[1735296441580,0.053906,96458.0,96457.0,1.505]
[1735296442280,0.057906,96458.0,96457.0,1.5]
[1735296442986,0.057906,96458.0,96457.0,1.501]
[1735296443280,0.060906,96458.0,96457.0,1.501]
[1735296443781,0.057906,96458.0,96457.0,1.501]
[1735296443974,0.059906,96458.0,96457.0,1.501]
[1735296445082,0.053906,96458.0,96457.0,1.5]
[1735296445285,0.059906,96458.0,96457.0,1.501]
[1735296445783,0.060906,96458.0,96457.0,1.501]
[1735296446185,0.061906,96458.0,96457.0,1.501]
[1735296447492,0.061906,96458.0,96457.0,0.001]
[1735296448384,0.003,96458.0,96449.0,1.5]
[1735296448681,0.061906,96458.0,96457.0,0.001]
[1735296449085,0.062906,96458.0,96457.0,0.001]
[1735296449282,0.063906,96458.0,96457.0,0.001]
[1735296450084,0.004,96458.0,96449.0,1.5]
[1735296450389,0.012,96458.0,96449.0,1.5]
[1735296450599,0.05191,96450.0,96449.0,1.5]
[1735296452292,0.05791,96450.0,96449.0,1.501]
[1735296452492,0.009,96450.0,96449.0,1.501]
[1735296452791,0.051901,96466.0,96449.0,1.501]
[1735296452985,0.1224559,96471.0,96450.0,0.10381233]
[1735296453191,0.15391015,96477.0,96460.0,0.10381233]
[1735296453397,0.18374552,96484.0,96460.0,0.10381233]
[1735296453398,0.18374552,96484.0,96474.0,1.5]
[1735296453698,0.18374552,96484.0,96483.0,0.051892]
[1735296454193,0.10381233,96493.0,96474.0,1.5]
[1735296454598,0.051889,96490.0,96481.0,0.051893]
[1735296456086,0.051889,96490.0,96483.0,0.051892]
[1735296456489,0.051889,96490.0,96484.0,0.0481]
[1735296457088,0.051884,96498.0,96484.0,0.0481]
[1735296457800,0.051884,96498.0,96492.0,0.051887]
[1735296458282,0.10381233,96500.0,96492.0,0.051887]
[1735296458486,0.10381233,96500.0,96484.0,0.0481]
[1735296458683,0.051891,96486.0,96484.0,0.0481]
[1735296461386,0.052891,96486.0,96484.0,0.0481]
[1735296462894,0.001,96486.0,96485.0,0.051891]
[1735296463087,0.051882,96502.0,96485.0,0.051891]
[1735296463284,0.051882,96502.0,96484.0,0.0481]
[1735296463285,0.051882,96502.0,96491.0,0.051887]
[1735296463489,0.051883,96501.0,96492.0,1.5]
[1735296463698,0.15569533,96501.0,96492.0,1.5]
[1735296464285,0.051883,96501.0,96492.0,1.5]
[1735296465400,0.051884,96499.0,96492.0,1.5]
[1735296467298,0.004,96501.0,96492.0,1.5]
[1735296467598,0.003,96499.0,96492.0,1.5]
[1735296467792,0.051885,96497.0,96492.0,1.5]
[1735296469698,0.052885,96497.0,96492.0,1.5]
[1735296470497,0.051885,96496.0,96492.0,1.5]
[1735296470698,0.051886,96495.0,96492.0,1.5]
[1735296471004,0.051886,96494.0,96492.0,1.5]
[1735296471699,0.051893,96481.0,96475.0,0.154596]
[1735296471904,0.051893,96481.0,96461.0,0.34916]
[1735296471905,0.10381233,96490.0,96474.0,0.01045077]
[1735296472207,0.051896,96476.0,96475.0,1.5]
[1735296472596,0.10381233,96480.0,96471.0,0.0485]
[1735296472891,0.051902,96464.0,96430.0,0.10381233]
[1735296473107,0.051902,96464.0,96453.0,1.5]
[1735296474799,0.0511,96473.0,96428.0,0.00155549]
[1735296475006,0.05191,96447.0,96428.0,0.00155549]
[1735296475192,0.10381233,96450.0,96430.0,0.051919]
[1735296475394,0.051907,96453.0,96431.0,1.5485]
[1735296475594,0.10381233,96460.0,96431.0,1.5485]
[1735296475795,0.10381233,96460.0,96447.0,0.05191]
[1735296476004,0.10381233,96460.0,96448.0,0.100109]
[1735296476206,0.051904,96459.0,96448.0,0.100109]
[1735296477001,0.051906,96455.0,96448.0,0.0482]
[1735296477199,0.051906,96455.0,96448.0,0.0522]
[1735296477705,0.051906,96455.0,96448.0,0.0482]
[1735296478106,0.051906,96455.0,96448.0,0.0492]
[1735296478701,0.051906,96455.0,96448.0,0.0482]
[1735296479807,0.051906,96455.0,96448.0,0.0492]
[1735296480800,0.051906,96455.0,96454.0,1.5]
[1735296482102,0.052906,96455.0,96454.0,1.5]
[1735296482608,0.001,96455.0,96454.0,1.5]
[1735296482803,0.051899,96468.0,96454.0,1.5]
[1735296483113,0.002,96455.0,96454.0,1.551906]
[1735296483297,0.18374552,96489.0,96472.0,0.051894]
[1735296483498,0.18374552,96489.0,96470.0,0.10381233]
[1735296483699,0.23563052,96489.0,96481.0,0.051889]
[1735296483999,0.24737798,96509.0,96491.0,0.051883]
[1735296484000,0.051881,96497.0,96491.0,0.051883]
[1735296485421,0.051886,96487.0,96474.0,0.051893]
[1735296485603,0.10381233,96490.0,96471.0,0.0496]
[1735296485800,0.051884,96491.0,96480.0,0.05189]
[1735296486214,0.003,96497.0,96471.0,0.0603096]
[1735296486403,0.003,96497.0,96496.0,0.051881]
[1735296486604,0.001,96497.0,96489.0,0.051885]
[1735296487202,0.001,96497.0,96490.0,0.051884]
[1735296487823,0.054881,96497.0,96490.0,0.051884]
[1735296488194,0.001,96497.0,96490.0,0.051884]
[1735296488398,0.051881,96496.0,96490.0,0.051884]
[1735296489212,0.002,96497.0,96490.0,0.051884]
[1735296489404,0.003,96497.0,96490.0,0.051884]
[1735296489704,0.003,96497.0,96475.0,0.24769119]
[1735296489906,0.10381233,96490.0,96484.0,0.051887]
[1735296490107,0.003,96497.0,96490.0,0.051884]
[1735296490302,0.051882,96494.0,96485.0,1.50052]
[1735296490501,0.001,96497.0,96485.0,1.5]
[1735296490808,0.051891,96478.0,96475.0,0.01050702]
[1735296491006,0.051891,96478.0,96470.0,0.24769119]
[1735296491197,0.051887,96486.0,96476.0,0.051891]
[1735296491397,0.051887,96486.0,96482.0,0.051888]
[1735296494215,0.051887,96486.0,96482.0,0.052888]
[1735296494404,0.051887,96486.0,96482.0,0.053888]
[1735296495103,0.051887,96486.0,96482.0,0.051888]
[1735296495303,0.0514,96496.0,96482.0,0.002]
[1735296495614,0.051884,96491.0,96485.0,0.051886]
[1735296496111,0.09210017,96504.0,96482.0,0.002]
[1735296496314,0.051879,96500.0,96482.0,0.002]
[1735296496512,0.051879,96500.0,96490.0,0.051884]
[1735296496701,0.051879,96500.0,96491.0,1.5]
[1735296497811,0.05188,96499.0,96491.0,1.5]
[1735296498912,0.05188,96499.0,96491.0,1.551883]
[1735296499109,0.05288,96499.0,96491.0,1.551883]
[1735296499305,0.05288,96499.0,96491.0,0.051883]
[1735296499816,0.05488,96499.0,96492.0,1.5]
[1735296500509,0.05488,96499.0,96493.0,0.051883]
[1735296501221,0.05288,96499.0,96493.0,0.051883]
[1735296501516,0.05488,96499.0,96493.0,0.051883]
[1735296501816,0.05688,96499.0,96493.0,0.051883]
[1735296502708,0.05388,96499.0,96493.0,0.051883]
[1735296502920,0.05688,96499.0,96494.0,0.051882]
[1735296504309,0.05388,96499.0,96494.0,0.051882]
[1735296504616,0.05788,96499.0,96494.0,0.051882]
[1735296504913,0.05788,96499.0,96495.0,0.051881]
[1735296505315,0.006,96499.0,96497.0,0.05188]
[1735296505704,0.09210017,96514.0,96512.0,0.051872]
[1735296506208,0.09210017,96514.0,96513.0,1.5]
[1735296506611,0.09210017,96514.0,96504.0,0.051876]
[1735296507018,0.051874,96509.0,96504.0,0.051876]
[1735296508920,0.11481233,96514.0,96504.0,0.051876]
[1735296509116,0.05188,96498.0,96496.0,0.24769119]
[1735296509516,0.05188,96498.0,96490.0,0.3627045]
[1735296509517,0.05188,96498.0,96494.0,0.24769119]
[1735296509912,0.0959,96505.0,96494.0,0.24769119]
[1735296510125,0.051881,96496.0,96494.0,0.24769119]
[1735296510421,0.0473,96495.0,96494.0,0.24769119]
[1735296510927,0.051885,96489.0,96488.0,1.50052]
[1735296511121,0.051885,96489.0,96488.0,1.5]
[1735296512414,0.053885,96489.0,96488.0,1.5]
[1735296513617,0.15632523,96489.0,96488.0,1.5]
[1735296513823,0.15632523,96489.0,96471.0,0.29958519]
[1735296513824,0.051889,96482.0,96471.0,0.29958519]
[1735296514031,0.1017,96481.0,96471.0,0.29958519]
[1735296514328,0.1017,96481.0,96472.0,1.5]
[1735296514536,0.1017,96481.0,96474.0,0.051892]
[1735296516026,0.1017,96481.0,96474.0,0.053892]
[1735296516615,0.1017,96481.0,96474.0,0.054892]
[1735296517914,0.153589,96481.0,96474.0,0.054892]
[1735296519321,0.09210017,96487.0,96474.0,0.003]
[1735296519718,0.051892,96477.0,96475.0,1.5]
[1735296520029,0.10381233,96485.0,96474.0,0.002]
[1735296520234,0.051892,96475.0,96474.0,0.002]
[1735296520723,0.051892,96475.0,96474.0,0.006]
[1735296522218,0.051892,96475.0,96461.0,0.00155495]
[1735296522421,0.051899,96462.0,96461.0,0.00155495]
[1735296522833,0.10381233,96471.0,96452.0,0.24769119]
[1735296522834,0.051904,96453.0,96452.0,0.24769119]
[1735296523239,0.10381233,96462.0,96447.0,0.24769119]
[1735296523432,0.051907,96448.0,96447.0,0.24769119]
[1735296524423,0.0473,96452.0,96435.0,0.24769119]
[1735296524623,0.05191,96444.0,96435.0,0.24769119]
[1735296525123,0.10381233,96450.0,96435.0,0.24769119]
[1735296525525,0.051913,96438.0,96435.0,0.24769119]
[1735296525720,0.051913,96436.0,96435.0,0.24769119]
[1735296526023,0.051913,96436.0,96432.0,0.00155541]
[1735296526024,0.051915,96433.0,96432.0,0.00155541]
[1735296526939,0.051918,96428.0,96427.0,0.24769119]
[1735296527529,0.051918,96428.0,96421.0,1.8585405]
[1735296527530,0.051921,96422.0,96421.0,1.54772]
[1735296527718,0.051921,96422.0,96421.0,1.5472]
[1735296528830,0.051921,96422.0,96421.0,1.5562]
[1735296529230,0.051921,96422.0,96421.0,1.5472]
[1735296529427,0.051921,96422.0,96421.0,1.5562]
[1735296531739,0.051921,96422.0,96421.0,0.009]
[1735296531927,0.051921,96422.0,96406.0,0.00155584]
[1735296532128,0.051929,96407.0,96406.0,0.00155584]
[1735296532730,0.051929,96407.0,96406.0,1.50155584]
[1735296533434,0.051929,96407.0,96406.0,1.50855584]
[1735296534423,0.052929,96407.0,96406.0,1.51755584]
[1735296535040,0.052929,96407.0,96406.0,1.51055584]
[1735296535237,0.053929,96407.0,96406.0,1.51755584]
[1735296536629,0.05194,96387.0,96386.0,0.0454]
[1735296537033,0.05194,96387.0,96386.0,1.5454]
[1735296537931,0.05294,96387.0,96386.0,1.5544]
[1735296538435,0.05394,96387.0,96386.0,1.5584]
[1735296539339,0.05294,96387.0,96386.0,1.5574]
[1735296540035,0.001,96387.0,96386.0,1.5574]
[1735296540237,0.10381233,96410.0,96386.0,1.5574]
[1735296540440,0.0492,96427.0,96390.0,0.10381233]
[1735296540737,0.051926,96412.0,96390.0,0.10381233]
[1735296541035,0.051927,96411.0,96405.0,0.05193]
[1735296541631,0.10481233,96420.0,96405.0,0.05193]
[1735296542142,0.051929,96407.0,96405.0,0.05193]